Workbook

Sheet SUMMARY
T1: TOTAL
H2: Jul 22 | I2: Aug 22 | J2: Sep 22 | K2: Oct 22 | L2: Nov 22 | M2: Dec 22 | N2: Jan 23 | O2: Feb 23 | P2: Mar 23 | Q2: Apr 23 | R2: May 23 | S2: Jun 23 | T2: Jul '22 - Jun 23
C4: Ordinary Income/Expense
E5: Income | T5: =ROUND(SUM(H5:S5),5) -> 0
F6: 42100 · Advertising | H6: =REV!E12 -> 55000 | I6: =REV!F12 -> 0 | J6: =REV!G12 -> 0 | K6: =REV!H12 -> 40000 | L6: =REV!I12 -> 0 | M6: =REV!J12 -> 0 | N6: =REV!K12 -> 75000 | O6: =REV!L12 -> 0 | P6: =REV!M12 -> 0 | Q6: =REV!N12 -> 0 | R6: =REV!O12 -> 0 | S6: =REV!P12 -> 0 | T6: =SUM(H6:S6) -> 170000
F7: 42200 · Exhibitor | H7: =REV!E20 -> 343100 | I7: =REV!F20 -> 109000 | J7: =REV!G20 -> 109000 | K7: =REV!H20 -> 89000 | L7: =REV!I20 -> 147000 | M7: =REV!J20 -> 300000 | N7: =REV!K20 -> 138500 | O7: =REV!L20 -> 0 | P7: =REV!M20 -> 0 | Q7: =REV!N20 -> 0 | R7: =REV!O20 -> 0 | S7: =REV!P20 -> 0 | T7: =SUM(H7:S7) -> 1235600 | U7: Based on 500 Exhibitors
F8: 42250 · Sponsorships | H8: =REV!E32 -> 212500 | I8: =REV!F32 -> 245000 | J8: =REV!G32 -> 237500 | K8: =REV!H32 -> 330000 | L8: =REV!I32 -> 67500 | M8: =REV!J32 -> 25000 | N8: =REV!K32 -> 7500 | O8: =REV!L32 -> 0 | P8: =REV!M32 -> 0 | Q8: =REV!N32 -> 0 | R8: =REV!O32 -> 0 | S8: =REV!P32 -> 0 | T8: 1125000 | U8: Based on 60 Sponsors
F9: 42375 · Hotel Commissions | H9: =REV!E36 -> 0 | I9: =REV!F36 -> 0 | J9: =REV!G36 -> 0 | K9: =REV!H36 -> 0 | L9: =REV!I36 -> 0 | M9: =REV!J36 -> 0 | N9: =REV!K36 -> 0 | O9: =REV!L36 -> 140000 | P9: =REV!M36 -> 0 | Q9: =REV!N36 -> 0 | R9: =REV!O36 -> 0 | S9: =REV!P36 -> 0 | T9: 140000
F10: 42380 · Commissions - Other | H10: =REV!E41 -> 0 | I10: =REV!F41 -> 25000 | J10: =REV!G41 -> 0 | K10: =REV!H41 -> 0 | L10: =REV!I41 -> 0 | M10: =REV!J41 -> 0 | N10: =REV!K41 -> 0 | O10: =REV!L41 -> 105200 | P10: =REV!M41 -> 0 | Q10: =REV!N41 -> 0 | R10: =REV!O41 -> 0 | S10: =REV!P41 -> 0 | T10: 130200
F11: Total 42580 · Miscellaneous Income | H11: =REV!E48 -> 0 | I11: =REV!F48 -> 0 | J11: =REV!G48 -> 0 | K11: =REV!H48 -> 0 | L11: =REV!I48 -> 0 | M11: =REV!J48 -> 0 | N11: =REV!K48 -> 0 | O11: =REV!L48 -> 500 | P11: =REV!M48 -> 0 | Q11: =REV!N48 -> 0 | R11: =REV!O48 -> 0 | S11: =REV!P48 -> 0 | T11: 500
F12: 42600 · Attendees | H12: =REV!E71 -> 0 | I12: =REV!F71 -> 94500 | J12: =REV!G71 -> 730200 | K12: =REV!H71 -> 358200 | L12: =REV!I71 -> 358800 | M12: =REV!J71 -> 856500 | N12: =REV!K71 -> 218800 | O12: =REV!L71 -> 24650 | P12: =REV!M71 -> 0 | Q12: =REV!N71 -> 0 | R12: =REV!O71 -> 0 | S12: =REV!P71 -> 0 | T12: 2641650 | U12: Based on 7,500 Attendees
E13: Total Income | H13: =REV!E73 -> 610600 | I13: =REV!F73 -> 473500 | J13: =REV!G73 -> 1076700 | K13: =REV!H73 -> 817200 | L13: =REV!I73 -> 573300 | M13: =REV!J73 -> 1181500 | N13: =REV!K73 -> 439800 | O13: =REV!L73 -> 270350 | P13: =REV!M73 -> 0 | Q13: =REV!N73 -> 0 | R13: =REV!O73 -> 0 | S13: =REV!P73 -> 0 | T13: 5442950
D14: Gross Profit | T14: 0
E15: Expense | T15: 0
F16: 50010 · Overhead Management | H16: =EXP!H7 -> 0 | I16: =EXP!I7 -> 0 | J16: =EXP!J7 -> 0 | K16: =EXP!K7 -> 0 | L16: =EXP!L7 -> 0 | M16: =EXP!M7 -> 0 | N16: =EXP!N7 -> 0 | O16: =EXP!O7 -> 0 | P16: =EXP!P7 -> 0 | Q16: =EXP!Q7 -> 405000 | R16: =EXP!R7 -> 0 | S16: =EXP!S7 -> 0 | T16: 405000 | U16: Based on 7,500 Attendees
F17: 54040 · Audio/Visual | H17: =EXP!H12 -> 0 | I17: =EXP!I12 -> 0 | J17: =EXP!J12 -> 0 | K17: =EXP!K12 -> 0 | L17: =EXP!L12 -> 0 | M17: =EXP!M12 -> 0 | N17: =EXP!N12 -> 0 | O17: =EXP!O12 -> 86800 | P17: =EXP!P12 -> 0 | Q17: =EXP!Q12 -> 0 | R17: =EXP!R12 -> 0 | S17: =EXP!S12 -> 0 | T17: 86800
F18: 54045 · Awards | H18: =EXP!H15 -> 0 | I18: =EXP!I15 -> 0 | J18: =EXP!J15 -> 0 | K18: =EXP!K15 -> 0 | L18: =EXP!L15 -> 0 | M18: =EXP!M15 -> 0 | N18: =EXP!N15 -> 0 | O18: =EXP!O15 -> 40000 | P18: =EXP!P15 -> 0 | Q18: =EXP!Q15 -> 0 | R18: =EXP!R15 -> 0 | S18: =EXP!S15 -> 0 | T18: 40000
F19: 54050 · Bank Charges | H19: =EXP!H19 -> 37500 | I19: =EXP!I19 -> 12500 | J19: =EXP!J19 -> 12500 | K19: =EXP!K19 -> 12500 | L19: =EXP!L19 -> 12500 | M19: =EXP!M19 -> 12500 | N19: =EXP!N19 -> 25000 | O19: =EXP!O19 -> 25000 | P19: =EXP!P19 -> 0 | Q19: =EXP!Q19 -> 0 | R19: =EXP!R19 -> 0 | S19: =EXP!S19 -> 0 | T19: 150000
F20: 54065 · IT & Software | H20: =EXP!H26 -> 0 | I20: =EXP!I26 -> 0 | J20: =EXP!J26 -> 1056 | K20: =EXP!K26 -> 1056 | L20: =EXP!L26 -> 2456 | M20: =EXP!M26 -> 1056 | N20: =EXP!N26 -> 1056 | O20: =EXP!O26 -> 956 | P20: =EXP!P26 -> 0 | Q20: =EXP!Q26 -> 0 | R20: =EXP!R26 -> 0 | S20: =EXP!S26 -> 0 | T20: 7636
F21: Total 54075 · Contract Labor (Header) | H21: =EXP!H43 -> 42000 | I21: =EXP!I43 -> 2400 | J21: =EXP!J43 -> 2400 | K21: =EXP!K43 -> 18900 | L21: =EXP!L43 -> 2400 | M21: =EXP!M43 -> 5500 | N21: =EXP!N43 -> 18150 | O21: =EXP!O43 -> 26150 | P21: =EXP!P43 -> 0 | Q21: =EXP!Q43 -> 0 | R21: =EXP!R43 -> 0 | S21: =EXP!S43 -> 0 | T21: 117900
F22: 54082 · Conventions / Seminars | H22: =EXP!H47 -> 500 | I22: =EXP!I47 -> 500 | J22: =EXP!J47 -> 0 | K22: =EXP!K47 -> 0 | L22: =EXP!L47 -> 0 | M22: =EXP!M47 -> 0 | N22: =EXP!N47 -> 0 | O22: =EXP!O47 -> 0 | P22: =EXP!P47 -> 0 | Q22: =EXP!Q47 -> 0 | R22: =EXP!R47 -> 0 | S22: =EXP!S47 -> 0 | T22: 1000
F23: 54095 · Dues & Subscriptions | H23: =EXP!H55 -> 500 | I23: =EXP!I55 -> 3900 | J23: =EXP!J55 -> 1225 | K23: =EXP!K55 -> 125 | L23: =EXP!L55 -> 575 | M23: =EXP!M55 -> 125 | N23: =EXP!N55 -> 125 | O23: =EXP!O55 -> 125 | P23: =EXP!P55 -> 0 | Q23: =EXP!Q55 -> 0 | R23: =EXP!R55 -> 0 | S23: =EXP!S55 -> 0 | T23: 6700
F24: 54098 · Emp Bene/Med/SS/401K/Pensions | H24: =EXP!H59 -> 27700 | I24: =EXP!I59 -> 3500 | J24: =EXP!J59 -> 3500 | K24: =EXP!K59 -> 8600 | L24: =EXP!L59 -> 3500 | M24: =EXP!M59 -> 3500 | N24: =EXP!N59 -> 8600 | O24: =EXP!O59 -> 3500 | P24: =EXP!P59 -> 0 | Q24: =EXP!Q59 -> 0 | R24: =EXP!R59 -> 0 | S24: =EXP!S59 -> 0 | T24: 62400
F25: 54105 · Equipment (under $5,000) | H25: =EXP!H65 -> 2300 | I25: =EXP!I65 -> 0 | J25: =EXP!J65 -> 0 | K25: =EXP!K65 -> 0 | L25: =EXP!L65 -> 0 | M25: =EXP!M65 -> 0 | N25: =EXP!N65 -> 0 | O25: =EXP!O65 -> 0 | P25: =EXP!P65 -> 0 | Q25: =EXP!Q65 -> 0 | R25: =EXP!R65 -> 0 | S25: =EXP!S65 -> 0 | T25: 2300
F26: 54110 · Exhibitor Booths/Freeman | H26: =EXP!H74 -> 0 | I26: =EXP!I74 -> 0 | J26: =EXP!J74 -> 0 | K26: =EXP!K74 -> 0 | L26: =EXP!L74 -> 0 | M26: =EXP!M74 -> 0 | N26: =EXP!N74 -> 0 | O26: =EXP!O74 -> 95000 | P26: =EXP!P74 -> 0 | Q26: =EXP!Q74 -> 0 | R26: =EXP!R74 -> 0 | S26: =EXP!S74 -> 0 | T26: 95000
F27: 54120 · Event Space | H27: =EXP!H77 -> 0 | I27: =EXP!I77 -> 0 | J27: =EXP!J77 -> 75735 | K27: =EXP!K77 -> 75735 | L27: =EXP!L77 -> 75735 | M27: =EXP!M77 -> 0 | N27: =EXP!N77 -> 0 | O27: =EXP!O77 -> 0 | P27: =EXP!P77 -> 0 | Q27: =EXP!Q77 -> 0 | R27: =EXP!R77 -> 0 | S27: =EXP!S77 -> 0 | T27: 227205
F28: Total 54135 · Food Service | H28: =EXP!H100 -> 0 | I28: =EXP!I100 -> 0 | J28: =EXP!J100 -> 0 | K28: =EXP!K100 -> 0 | L28: =EXP!L100 -> 0 | M28: =EXP!M100 -> 0 | N28: =EXP!N100 -> 0 | O28: =EXP!O100 -> 418500 | P28: =EXP!P100 -> 0 | Q28: =EXP!Q100 -> 0 | R28: =EXP!R100 -> 0 | S28: =EXP!S100 -> 0 | T28: 418500
F29: 54142 · Gifts | H29: =EXP!H108 -> 0 | I29: =EXP!I108 -> 0 | J29: =EXP!J108 -> 0 | K29: =EXP!K108 -> 0 | L29: =EXP!L108 -> 0 | M29: =EXP!M108 -> 500 | N29: =EXP!N108 -> 3250 | O29: =EXP!O108 -> 250 | P29: =EXP!P108 -> 0 | Q29: =EXP!Q108 -> 0 | R29: =EXP!R108 -> 0 | S29: =EXP!S108 -> 0 | T29: 4000
F30: 54155 · Insurance | H30: =EXP!H113 -> 0 | I30: =EXP!I113 -> 0 | J30: =EXP!J113 -> 1800 | K30: =EXP!K113 -> 1800 | L30: =EXP!L113 -> 1800 | M30: =EXP!M113 -> 31800 | N30: =EXP!N113 -> 1800 | O30: =EXP!O113 -> 1800 | P30: =EXP!P113 -> 0 | Q30: =EXP!Q113 -> 0 | R30: =EXP!R113 -> 0 | S30: =EXP!S113 -> 0 | T30: 40800
F31: 54160 · Legal/Accounting | H31: =EXP!H118 -> 0 | I31: =EXP!I118 -> 0 | J31: =EXP!J118 -> 8000 | K31: =EXP!K118 -> 0 | L31: =EXP!L118 -> 3000 | M31: =EXP!M118 -> 600 | N31: =EXP!N118 -> 2200 | O31: =EXP!O118 -> 5200 | P31: =EXP!P118 -> 0 | Q31: =EXP!Q118 -> 0 | R31: =EXP!R118 -> 0 | S31: =EXP!S118 -> 0 | T31: 19000
F32: Total 54172 · Marketing | H32: =EXP!H133 -> 0 | I32: =EXP!I133 -> 500 | J32: =EXP!J133 -> 3000 | K32: =EXP!K133 -> 4350 | L32: =EXP!L133 -> 5000 | M32: =EXP!M133 -> 0 | N32: =EXP!N133 -> 19000 | O32: =EXP!O133 -> 0 | P32: =EXP!P133 -> 0 | Q32: =EXP!Q133 -> 0 | R32: =EXP!R133 -> 0 | S32: =EXP!S133 -> 0 | T32: 31850
F33: 54175 · Meals & Entertainment | H33: =EXP!H139 -> 0 | I33: =EXP!I139 -> 0 | J33: =EXP!J139 -> 0 | K33: =EXP!K139 -> 0 | L33: =EXP!L139 -> 0 | M33: =EXP!M139 -> 0 | N33: =EXP!N139 -> 0 | O33: =EXP!O139 -> 7000 | P33: =EXP!P139 -> 0 | Q33: =EXP!Q139 -> 0 | R33: =EXP!R139 -> 0 | S33: =EXP!S139 -> 0 | T33: 7000
F34: 54185 · Office Supplies | H34: =EXP!H145 -> 0 | I34: =EXP!I145 -> 0 | J34: =EXP!J145 -> 510 | K34: =EXP!K145 -> 510 | L34: =EXP!L145 -> 510 | M34: =EXP!M145 -> 510 | N34: =EXP!N145 -> 510 | O34: =EXP!O145 -> 510 | P34: =EXP!P145 -> 0 | Q34: =EXP!Q145 -> 0 | R34: =EXP!R145 -> 0 | S34: =EXP!S145 -> 0 | T34: 3060
F35: 54195 · Online/Website | H35: =EXP!H151 -> 3000 | I35: =EXP!I151 -> 0 | J35: =EXP!J151 -> 2350 | K35: =EXP!K151 -> 1050 | L35: =EXP!L151 -> 1400 | M35: =EXP!M151 -> 1050 | N35: =EXP!N151 -> 1050 | O35: =EXP!O151 -> 1050 | P35: =EXP!P151 -> 0 | Q35: =EXP!Q151 -> 0 | R35: =EXP!R151 -> 0 | S35: =EXP!S151 -> 0 | T35: 10950
F36: 54220 · On-Site Utilities | H36: =EXP!H155 -> 0 | I36: =EXP!I155 -> 0 | J36: =EXP!J155 -> 0 | K36: =EXP!K155 -> 0 | L36: =EXP!L155 -> 0 | M36: =EXP!M155 -> 0 | N36: =EXP!N155 -> 0 | O36: =EXP!O155 -> 30000 | P36: =EXP!P155 -> 0 | Q36: =EXP!Q155 -> 0 | R36: =EXP!R155 -> 0 | S36: =EXP!S155 -> 0 | T36: 30000
F37: 54225 · Sponsor Branded Items | H37: =EXP!H166 -> 0 | I37: =EXP!I166 -> 0 | J37: =EXP!J166 -> 0 | K37: =EXP!K166 -> 0 | L37: =EXP!L166 -> 0 | M37: =EXP!M166 -> 0 | N37: =EXP!N166 -> 0 | O37: =EXP!O166 -> 23480 | P37: =EXP!P166 -> 0 | Q37: =EXP!Q166 -> 0 | R37: =EXP!R166 -> 0 | S37: =EXP!S166 -> 0 | T37: 23480
F38: 54230 · Postage/Freight | H38: =EXP!H180 -> 17125 | I38: =EXP!I180 -> 1025 | J38: =EXP!J180 -> 25 | K38: =EXP!K180 -> 8525 | L38: =EXP!L180 -> 6025 | M38: =EXP!M180 -> 25 | N38: =EXP!N180 -> 21625 | O38: =EXP!O180 -> 1125 | P38: =EXP!P180 -> 0 | Q38: =EXP!Q180 -> 0 | R38: =EXP!R180 -> 0 | S38: =EXP!S180 -> 0 | T38: 55500
F39: 54235 · Phone & Connectivity | H39: =EXP!H184 -> 0 | I39: =EXP!I184 -> 0 | J39: =EXP!J184 -> 0 | K39: =EXP!K184 -> 0 | L39: =EXP!L184 -> 0 | M39: =EXP!M184 -> 0 | N39: =EXP!N184 -> 0 | O39: =EXP!O184 -> 175 | P39: =EXP!P184 -> 0 | Q39: =EXP!Q184 -> 0 | R39: =EXP!R184 -> 0 | S39: =EXP!S184 -> 0 | T39: 175
F40: 54240 · Printing | H40: =EXP!H206 -> 72500 | I40: =EXP!I206 -> 0 | J40: =EXP!J206 -> 0 | K40: =EXP!K206 -> 34000 | L40: =EXP!L206 -> 11500 | M40: =EXP!M206 -> 2400 | N40: =EXP!N206 -> 75550 | O40: =EXP!O206 -> 200 | P40: =EXP!P206 -> 0 | Q40: =EXP!Q206 -> 0 | R40: =EXP!R206 -> 0 | S40: =EXP!S206 -> 0 | T40: 196150
F41: 54255 · Rent | H41: =EXP!H209 -> 43625 | I41: =EXP!I209 -> 8725 | J41: =EXP!J209 -> 8725 | K41: =EXP!K209 -> 8725 | L41: =EXP!L209 -> 8725 | M41: =EXP!M209 -> 8725 | N41: =EXP!N209 -> 8725 | O41: =EXP!O209 -> 8725 | P41: =EXP!P209 -> 0 | Q41: =EXP!Q209 -> 0 | R41: =EXP!R209 -> 0 | S41: =EXP!S209 -> 0 | T41: 104700
F42: 54257 · Registration Services | H42: =EXP!H213 -> 32000 | I42: =EXP!I213 -> 0 | J42: =EXP!J213 -> 0 | K42: =EXP!K213 -> 0 | L42: =EXP!L213 -> 0 | M42: =EXP!M213 -> 0 | N42: =EXP!N213 -> 0 | O42: =EXP!O213 -> 48000 | P42: =EXP!P213 -> 0 | Q42: =EXP!Q213 -> 0 | R42: =EXP!R213 -> 0 | S42: =EXP!S213 -> 0 | T42: 80000
F43: 54258 · Salaries | H43: =EXP!H216 -> 203475 | I43: =EXP!I216 -> 40695 | J43: =EXP!J216 -> 38711.49 | K43: =EXP!K216 -> 43186.51 | L43: =EXP!L216 -> 40695.2 | M43: =EXP!M216 -> 61042.8 | N43: =EXP!N216 -> 40695.2 | O43: =EXP!O216 -> 40695.2 | P43: =EXP!P216 -> 0 | Q43: =EXP!Q216 -> 0 | R43: =EXP!R216 -> 0 | S43: =EXP!S216 -> 0 | T43: 509196.4
F44: 54260 · Security Guards | H44: =EXP!H219 -> 0 | I44: =EXP!I219 -> 0 | J44: =EXP!J219 -> 0 | K44: =EXP!K219 -> 0 | L44: =EXP!L219 -> 0 | M44: =EXP!M219 -> 38000 | N44: =EXP!N219 -> 0 | O44: =EXP!O219 -> 4000 | P44: =EXP!P219 -> 0 | Q44: =EXP!Q219 -> 0 | R44: =EXP!R219 -> 0 | S44: =EXP!S219 -> 0 | T44: 42000
F45: Total 54265 · Speaker | H45: =EXP!H228 -> 0 | I45: =EXP!I228 -> 0 | J45: =EXP!J228 -> 0 | K45: =EXP!K228 -> 0 | L45: =EXP!L228 -> 0 | M45: =EXP!M228 -> 0 | N45: =EXP!N228 -> 99000 | O45: =EXP!O228 -> 1000 | P45: =EXP!P228 -> 0 | Q45: =EXP!Q228 -> 0 | R45: =EXP!R228 -> 0 | S45: =EXP!S228 -> 0 | T45: 100000
F46: 54280 · Supplies | H46: =EXP!H237 -> 0 | I46: =EXP!I237 -> 0 | J46: =EXP!J237 -> 0 | K46: =EXP!K237 -> 25000 | L46: =EXP!L237 -> 2500 | M46: =EXP!M237 -> 0 | N46: =EXP!N237 -> 0 | O46: =EXP!O237 -> 48500 | P46: =EXP!P237 -> 0 | Q46: =EXP!Q237 -> 0 | R46: =EXP!R237 -> 0 | S46: =EXP!S237 -> 0 | T46: 76000
F47: Total 54290 · Travel | H47: =EXP!H248 -> 0 | I47: =EXP!I248 -> 0 | J47: =EXP!J248 -> 0 | K47: =EXP!K248 -> 6000 | L47: =EXP!L248 -> 6000 | M47: =EXP!M248 -> 0 | N47: =EXP!N248 -> 0 | O47: =EXP!O248 -> 19000 | P47: =EXP!P248 -> 0 | Q47: =EXP!Q248 -> 0 | R47: =EXP!R248 -> 0 | S47: =EXP!S248 -> 0 | T47: 31000
E48: Total Expense | H48: =EXP!H252 -> 482225 | I48: =EXP!I252 -> 73745 | J48: =EXP!J252 -> 159537.49 | K48: =EXP!K252 -> 250062.51 | L48: =EXP!L252 -> 184321.2 | M48: =EXP!M252 -> 167333.8 | N48: =EXP!N252 -> 326336.2 | O48: =EXP!O252 -> 936741.2 | P48: =EXP!P252 -> 0 | Q48: =EXP!Q252 -> 405000 | R48: =EXP!R252 -> 0 | S48: =EXP!S252 -> 0 | T48: 2985302.4
C49: Net Ordinary Income | H49: =H13-H48 -> 128375 | I49: =I13-I48 -> 399755 | J49: 917162.51 | K49: 567137.49 | L49: 388978.8 | M49: 1014166.2 | N49: 113463.8 | O49: -666391.2 | P49: 0 | Q49: -405000 | R49: 0 | S49: 0 | T49: 2457647.6
C50: Other Income/Expense | T50: 0
D51: Other Expense | T51: 0
E52: 60000 · Margin Tax Expense | H52: =EXP!H258 -> 0 | I52: =EXP!I258 -> 0 | J52: =EXP!J258 -> 0 | K52: =EXP!K258 -> 0 | L52: =EXP!L258 -> 0 | M52: =EXP!M258 -> 0 | N52: =EXP!N258 -> 0 | O52: =EXP!O258 -> 0 | P52: =EXP!P258 -> 0 | Q52: =EXP!Q258 -> 0 | R52: =EXP!R258 -> 0 | S52: =EXP!S258 -> 0 | T52: 0
D53: Total Other Expense | H53: =H52 -> 0 | I53: =I52 -> 0 | J53: =J52 -> 0 | K53: =K52 -> 0 | L53: =L52 -> 0 | M53: =M52 -> 0 | N53: 0 | O53: 0 | P53: 0 | Q53: 0 | R53: 0 | S53: 0 | T53: 0
C54: Net Other Income | H54: =SUM(H53) -> 0 | I54: =SUM(I53) -> 0 | J54: 0 | K54: 0 | L54: 0 | M54: 0 | N54: 0 | O54: 0 | P54: 0 | Q54: 0 | R54: 0 | S54: 0 | T54: 0
B55: Net Income | H55: =H49-H54 -> 128375 | I55: =I49-I54 -> 399755 | J55: 917162.51 | K55: 567137.49 | L55: 388978.8 | M55: 1014166.2 | N55: 113463.8 | O55: -666391.2 | P55: 0 | Q55: -405000 | R55: 0 | S55: 0 | T55: 2457647.6

Sheet REV
E1: Jul 22 | F1: Aug 22 | G1: Sep 22 | H1: Oct 22 | I1: Nov 22 | J1: Dec 22 | K1: Jan 23 | L1: Feb 23 | M1: Mar 23 | N1: Apr 23 | O1: May 23 | P1: Jun 23 | Q1: Jul '22 - Jun 23
B3: Income
C4: Income | Q4: =ROUND(SUM(E4:P4),5) -> 0
D5: 42100 · Advertising
D6: NAPE Magazine April 2022 Issue | E6: 25000
D7: NAPE Magazine July 2022 Issue | E7: 30000
D8: NAPE Magazine October 2022 Issue | H8: 40000
D9: NAPE Magazine January 2023 Issue | K9: 60000
D10: Show Guide | K10: 10000
D11: Web Banners | K11: 5000
D12: Total | E12: =SUM(E6:E11) -> 55000 | F12: =SUM(F6:F11) -> 0 | G12: 0 | H12: 40000 | I12: 0 | J12: 0 | K12: 75000 | L12: 0 | M12: 0 | N12: 0 | O12: 0 | P12: 0 | Q12: =SUM(E12:P12) -> 170000
D13: 42200 · Exhibitor
D14: Prospect/Capital Booth Rate $475 | E14: 175100 | F14: 30000 | G14: 30000 | H14: 10000 | I14: 10000 | J14: 5000 | K14: 5500
D15: Prospect/Capital Booth Rate $685 | E15: 13000 | F15: 13000 | G15: 13000 | H15: 13000 | I15: 26000 | J15: 26000
D16: Prospect/Capital Booth Rate $840 | J16: 48000 | K16: 50000
D17: Vendor Service Provider Rate $6,250 | E17: 145000 | F17: 56000 | G17: 56000 | H17: 56000 | I17: 56000 | J17: 56000 | K17: 56000
D18: Vendor Service Provider Rate $7,750 | E18: 10000 | F18: 10000 | G18: 10000 | H18: 10000 | I18: 55000 | J18: 55000
D19: Vendor Service Provider Rate $8,500 | J19: 110000 | K19: 27000
D20: Total | E20: =SUM(E14:E19) -> 343100 | F20: =SUM(F14:F19) -> 109000 | G20: 109000 | H20: 89000 | I20: 147000 | J20: 300000 | K20: 138500 | L20: 0 | M20: =SUM(M19) -> 0 | N20: =SUM(N19) -> 0 | O20: =SUM(O19) -> 0 | P20: =SUM(P19) -> 0 | Q20: =SUM(E20:P20) -> 1235600 | R20: Based on 500 Exhibitors
D21: 42250 · Sponsorships
D22: Sponsor Rate $7,500 | E22: 22500 | F22: 7500 | G22: 7500 | K22: 7500
D23: Sponsor Rate $10,000 | E23: 30000 | F23: 30000 | G23: 20000 | J23: 10000
D24: Sponsor Rate $12,500 | E24: 25000 | G24: 50000 | H24: 37500 | I24: 12500
D25: Sponsor Rate $15,000 | E25: 15000 | H25: 60000 | J25: 15000
D26: Sponsor Rate $17,500 | F26: 17500 | G26: 35000 | H26: 17500
D27: Sponsor Rate $20,000 | F27: 20000 | G27: 20000 | H27: 20000
D28: Sponsor Rate $25,000 | E28: 50000 | G28: 25000 | I28: 25000
D29: Sponsor Rate $30,000 | E29: 30000 | F29: 90000 | I29: 30000
D30: Sponsor Rate $40,000 | E30: 40000 | F30: 80000 | G30: 80000 | H30: 160000
D31: Case Study Prize Money | H31: 35000
D32: Total | E32: =SUM(E22:E31) -> 212500 | F32: =SUM(F22:F31) -> 245000 | G32: =SUM(G22:G30) -> 237500 | H32: =SUM(H24:H31) -> 330000 | I32: =SUM(I22:I31) -> 67500 | J32: =SUM(J22:J30) -> 25000 | K32: =SUM(K22:K30) -> 7500 | L32: =SUM(L30) -> 0 | M32: 0 | N32: 0 | O32: 0 | P32: 0 | Q32: =SUM(E32:P32) -> 1125000 | R32: Based on 60 Sponsors
D33: 42375 · Hotel Commissions
D34: Hotel Commissions - 60% Revenue Share | L34: 100000
D35: Hotel Commissions-90% Rebate Share | L35: 40000
D36: Total | E36: =SUM(E35) -> 0 | F36: =SUM(F35) -> 0 | G36: 0 | H36: 0 | I36: 0 | J36: 0 | K36: 0 | L36: =SUM(L34:L35) -> 140000 | M36: 0 | N36: 0 | O36: 0 | P36: 0 | Q36: =SUM(E36:P36) -> 140000
D37: 42380 · Commissions - Other
D38: Freeman Signing Bonus | F38: 25000
D39: Freeman Commission | L39: 105000
D40: Commission for Exhibitor Insurance | L40: 200
D41: Total | E41: =SUM(E40) -> 0 | F41: =SUM(F38:F40) -> 25000 | G41: 0 | H41: 0 | I41: 0 | J41: 0 | K41: 0 | L41: =SUM(L39:L40) -> 105200 | M41: =SUM(M40) -> 0 | N41: 0 | O41: 0 | P41: 0 | Q41: =SUM(E41:P41) -> 130200
D42: 42580 · Miscellaneous Income
D45: 42400 · Interest/Dividends
D47: Interest/Dividends | L47: 500 | Q47: =Q46 -> 0
D48: Total 42580 · Miscellaneous Income | E48: =E44+E47 -> 0 | F48: 0 | G48: 0 | H48: 0 | I48: 0 | J48: 0 | K48: 0 | L48: 500 | M48: 0 | N48: 0 | O48: 0 | P48: 0 | Q48: =SUM(E48:P48) -> 500
D50: 42600 · Attendees
D51: NAPE GBC and NAPE Expo Registration EB Rate $555 | F51: 27500 | G51: 27500
D52: NAPE GBC and NAPE Expo Registration PP Rate $710 | H52: 47400 | I52: 47400 | J52: 47400
D53: NAPE GBC and NAPE Expo Registration SP Rate $740 | J53: 37000 | K53: 37000
D54: NAPE GBC and NAPE Expo Registration WOS Rate $845 | K54: 22000 | L54: 22000
D55: NAPE Expo Registration EB Rate $260 | F55: 67000 | G55: 687000
D56: NAPE Expo Registration PP Rate $360 | H56: 303000 | I56: 303000 | J56: 303000
D57: NAPE Expo Registration SP Rate $400 | J57: 276000
D58: NAPE Expo Registration WOS Rate $505 | J58: 165000 | K58: 145000
D59: NAPE GBC Registration EB Rate $340 | G59: 1700
D60: NAPE GBC Registration PP Rate $400 | H60: 3400 | I60: 3400 | J60: 3400
D61: NAPE GBC Registration SP Rate $425 | J61: 2200 | K61: 2200
D62: NAPE GBC Registration WOS Rate $530 | K62: 2650 | L62: 2650
D63: NAPE Charities Luncheon Table EB Rate $900 | G63: 8000
D64: NAPE Charities Luncheon Table PP Rate $1,000 | H64: 3000 | I64: 2000 | J64: 5000
D65: NAPE Charities Luncheon Table SP Rate $1,200 | J65: 6000 | K65: 2400
D66: NAPE Charities Luncheon Table WOS Rate $1,400 | K66: 2800
D67: NAPE Charities Luncheon Single Ticket EB Rate $125 | G67: 6000
D68: NAPE Charities Luncheon Single Ticket PP Rate $150 | H68: 1400 | I68: 3000 | J68: 4500
D69: NAPE Charities Luncheon Single Ticket SP Rate $175 | J69: 7000 | K69: 1750
D70: NAPE Charities Luncheon Single Ticket EB Rate $200 | K70: 3000
D71: Total | E71: =SUM(E70) -> 0 | F71: =SUM(F51:F70) -> 94500 | G71: =SUM(G51:G70) -> 730200 | H71: 358200 | I71: 358800 | J71: 856500 | K71: 218800 | L71: 24650 | M71: 0 | N71: 0 | O71: 0 | P71: 0 | Q71: =SUM(E71:P71) -> 2641650 | R71: Based on 7,500 Attendees
D73: TOTAL INCOME | E73: =E12+E20+E32+E36+E41+E48+E71 -> 610600 | F73: 473500 | G73: 1076700 | H73: 817200 | I73: 573300 | J73: 1181500 | K73: 439800 | L73: 270350 | M73: 0 | N73: 0 | O73: 0 | P73: 0 | Q73: =ROUND(SUM(E73:P73),5) -> 5442950

Sheet EXP
T1: TOTAL
H2: Jul 22 | I2: Aug 22 | J2: Sep 22 | K2: Oct 22 | L2: Nov 22 | M2: Dec 22 | N2: Jan 23 | O2: Feb 23 | P2: Mar 23 | Q2: Apr 23 | R2: May 23 | S2: Jun 23 | T2: Jul '22 - Jun 23
D3: Expense
E4: Expense
F5: 50010 · Overhead Management
G6: NAPE Summit 2023 Mgmt Fee - 7,500 total attendees @ $54 | Q6: 405000
G7: Total | H7: =SUM(H6) -> 0 | I7: 0 | J7: 0 | K7: 0 | L7: 0 | M7: 0 | N7: 0 | O7: 0 | P7: 0 | Q7: 405000 | R7: 0 | S7: 0 | T7: =SUM(H7:S7) -> 405000
F8: 54040 · Audio/Visual
G9: Audio Visual for NAPE Advisory Board Meeting (Hilton Americas) | O9: 300
G10: Rigging Fees for NAPE Summit (Staging Solutions) | O10: 6500
G11: Audio/Visual for NAPE Summit (Southern Sound and Light) | O11: 80000
G12: Total | H12: =SUM(H9:H11) -> 0 | I12: =SUM(I9:I11) -> 0 | J12: =SUM(J9) -> 0 | K12: =SUM(K9) -> 0 | L12: =SUM(L9) -> 0 | M12: =SUM(M9) -> 0 | N12: =SUM(N9) -> 0 | O12: =SUM(O9:O11) -> 86800 | P12: =SUM(P9) -> 0 | Q12: =SUM(Q9) -> 0 | R12: =SUM(R9) -> 0 | S12: =SUM(S9) -> 0 | T12: =SUM(H12:S12) -> 86800
F13: 54045 · Awards
G14: Case Study Prize Money (AAPL Ed Foundation) | O14: 40000
G15: Total | H15: =H14 -> 0 | I15: =I14 -> 0 | J15: 0 | K15: 0 | L15: 0 | M15: 0 | N15: 0 | O15: 40000 | P15: 0 | Q15: 0 | R15: 0 | S15: 0 | T15: =SUM(H15:S15) -> 40000
F16: 54050 · Bank Charges
G17: fees fluctuate with volume of registrations, expecting registrations to increase in January and February | H17: 37500 | I17: 12500 | J17: 12500 | K17: 12500 | L17: 12500 | M17: 12500 | N17: 25000 | O17: 25000
G19: Total | H19: =SUM(H17:H18) -> 37500 | I19: =SUM(I17:I18) -> 12500 | J19: =SUM(J17:J18) -> 12500 | K19: 12500 | L19: 12500 | M19: 12500 | N19: 25000 | O19: 25000 | P19: =SUM(P18) -> 0 | Q19: 0 | R19: 0 | S19: 0 | T19: =SUM(H19:S19) -> 150000
F20: 54065 · IT & Software
G21: Adobe Acrobat Pro DC Subscription (Adobe Systems) | H21: 64 | I21: 16 | J21: 16 | K21: 16 | L21: 16 | M21: 16 | N21: 16 | O21: 16
G22: Software/Network Support (Parity Consultants) | H22: 3760 | I22: 940 | J22: 940 | K22: 940 | L22: 940 | M22: 940 | N22: 940 | O22: 940
G23: Quickbooks Enterprise Solutions Full Service Annual Plan (Intuit) | L23: 1400
G24: Data Mapping Subscription (BatchGeo) | H24: 400 | I24: 100 | J24: 100 | K24: 100 | L24: 100 | M24: 100 | N24: 100
G26: Total | H26: =SUM(H25) -> 0 | I26: 0 | J26: =SUM(J21:J25) -> 1056 | K26: 1056 | L26: 2456 | M26: 1056 | N26: 1056 | O26: 956 | P26: 0 | Q26: 0 | R26: 0 | S26: 0 | T26: =SUM(H26:S26) -> 7636
F27: 54075 · Contract Labor (Header)
G29: 54080 · Contract Labor/On-Site
G30: Photographer for Headshot Booth (Greg Hamill Photography) | K30: 1500 | O30: 3500
G31: First Aid and Medic Services (1st Responce Medic Services) | M31: 2200
G32: Photography Services at Summit | O32: 3500
G33: On-site Staff Support (Burnett Staffing Specialists) | O33: 16000
G34: 54085 · Contract Labor/Office
G35: NAPE Magazine October Issue: Contributing Editing, Authors, Designers | K35: 15000
G36: NAPE Magazine January Issue: Contributing Editing, Authors, Designers | N36: 15000
G37: NAPE Magazine April Issue: Contributing Editing, Authors, Designers | H37: 15000
G38: NAPE Magazine July Issue: Contributing Editing, Authors, Designers | H38: 15000
G39: Briggs and Briggs - NAPE accounting contract labor | M39: 900 | N39: 750 | O39: 750
G41: 54086 · Contract Labor/Other
G42: Service Fees | H42: 12000 | I42: 2400 | J42: 2400 | K42: 2400 | L42: 2400 | M42: 2400 | N42: 2400 | O42: 2400
F43: Total 54075 · Contract Labor (Header) | H43: =SUM(H28:H42) -> 42000 | I43: 2400 | J43: 2400 | K43: 18900 | L43: 2400 | M43: 5500 | N43: 18150 | O43: 26150 | P43: 0 | Q43: 0 | R43: 0 | S43: 0 | T43: =SUM(H43:S43) -> 117900
F45: 54082 · Conventions / Seminars
G46: CEM Class IAEE | H46: 500 | I46: 500
G47: Total | H47: =SUM(H46) -> 500 | I47: =SUM(I46) -> 500 | J47: 0 | K47: 0 | L47: 0 | M47: 0 | N47: 0 | O47: 0 | P47: 0 | Q47: 0 | R47: 0 | S47: 0 | T47: =SUM(H47:S47) -> 1000
F48: 54095 · Dues & Subscriptions
G49: Video Conferencing | H49: 500 | I49: 100 | J49: 100 | K49: 100 | L49: 100 | M49: 100 | N49: 100 | O49: 100
G50: Houston Chronicle Subscription | J50: 25 | K50: 25 | L50: 25 | M50: 25 | N50: 25 | O50: 25
G51: IAEE Membership | J51: 1100
G52: CLE Certification | L52: 450
G53: Getty Images | I53: 3800
G55: Total | H55: =SUM(H49) -> 500 | I55: =SUM(I49:I54) -> 3900 | J55: 1225 | K55: 125 | L55: 575 | M55: 125 | N55: 125 | O55: 125 | P55: 0 | Q55: 0 | R55: 0 | S55: =SUM(S49) -> 0 | T55: =SUM(H55:S55) -> 6700
F56: 54098 · Emp Bene/Med/SS/401K/Pensions
G57: EMI Health | H57: 17500 | I57: 3500 | J57: 3500 | K57: 3500 | L57: 3500 | M57: 3500 | N57: 3500 | O57: 3500
G58: Rogers - safe harbor match | H58: 10200 | K58: 5100 | N58: 5100
G59: Total | H59: =SUM(H57+H58) -> 27700 | I59: 3500 | J59: 3500 | K59: 8600 | L59: 3500 | M59: 3500 | N59: 8600 | O59: 3500 | P59: 0 | Q59: 0 | R59: 0 | S59: =SUM(S58) -> 0 | T59: =SUM(H59:S59) -> 62400
F60: 54105 · Equipment (under $5,000)
G61: Lenovo ThinkPad- (Parity Consultants) | H61: 2000
G62: Docking Station - (Parity Consultants) | H62: 300
G65: Total | H65: =SUM(H61:H64) -> 2300 | I65: =SUM(I64) -> 0 | J65: =SUM(J64) -> 0 | K65: =SUM(K61:K64) -> 0 | L65: =SUM(L64) -> 0 | M65: 0 | N65: 0 | O65: 0 | P65: 0 | Q65: 0 | R65: 0 | S65: 0 | T65: =SUM(H65:S65) -> 2300
F66: 54110 · Exhibitor Booths/Freeman
G67: Business Conference (Freeman) | O67: 10000
G68: Icebreaker Decorations (Freeman) | O68: 6000
G69: Signs (Freeman) | O69: 35000
G70: Exhibit Area Setup Requirements (Freeman) | O70: 25000
G71: Registration Area (Freeman) | O71: 4500
G72: Beverage and Lounge Area (Freeman) | O72: 10000
G73: General Requirements (Freeman) | O73: 4500
G74: Total | H74: =SUM(H73) -> 0 | I74: =SUM(I73) -> 0 | J74: 0 | K74: 0 | L74: 0 | M74: 0 | N74: 0 | O74: =SUM(O67:O73) -> 95000 | P74: 0 | Q74: 0 | R74: 0 | S74: 0 | T74: =SUM(H74:S74) -> 95000
F75: 54120 · Event Space
G76: GRB Payment (Houston First Corporation) | J76: 75735 | K76: 75735 | L76: 75735
G77: Total | H77: =SUM(H76) -> 0 | I77: =SUM(I76) -> 0 | J77: 75735 | K77: 75735 | L77: 75735 | M77: 0 | N77: 0 | O77: 0 | P77: 0 | Q77: 0 | R77: 0 | S77: 0 | T77: =SUM(H77:S77) -> 227205
F78: 54135 · Food Service
G79: 54070 · Beverages/Coffee Breaks
G80: Coffee, Tea, Soda, Water, Etc. (Levy Food Service) | O80: 68000
G81: 54071 · Business Conference
G82: Breakfast, Lunch (Levy Food Service) | O82: 20000
G83: 54165 · Luncheon Exp - Charities
G84: Lunch (Levy Food Service) | O84: 50000
G85: 54170 · Lunches/Buffets
G86: Expo Lunch, Expo Brunch (Levy Food Service) | O86: 85000
G87: 54270 · Staff
G88: Breakfast, Lunch (Levy Food Service) | O88: 3000
G89: 54370 · Ice Breaker
G90: Hors d'Oeuvres, Cocktails (Levy Food Service) | O90: 75000
G91: 54470 · Floor Reception
G92: Hors d'Oeuvres, Cocktails (Levy Food Service) | O92: 30000
G93: 54475 · Sponsor Reception
G94: Hors d'Oeuvres, Cocktails (Levy Food Service) | O94: 86000
G95: 54480 · PR/Media
G96: Snacks, Coffee, Tea, Soda, Water (Levy Food Service) | O96: 500
G97: 54490 · University Case Competition
G98: Lunch, Snacks, Coffee, Tea, Soda, Water (Levy Food Service) | O98: 1000
F100: Total 54135 · Food Service | H100: =SUM(H80:H99) -> 0 | I100: =SUM(I80:I99) -> 0 | J100: 0 | K100: 0 | L100: 0 | M100: 0 | N100: 0 | O100: 418500 | P100: 0 | Q100: 0 | R100: 0 | S100: 0 | T100: =SUM(H100:S100) -> 418500
F102: 54142 · Gifts
G103: NAPE Staff Gift | M103: 500
G104: Anniversery Gifts | O104: 250
G105: Spekaer Gifts | N105: 1000
G106: Gift Cards For Event Staff | N106: 2000
G107: Vendor Gifts | N107: 250
G108: Total | H108: =SUM(H107) -> 0 | I108: =SUM(I107) -> 0 | J108: 0 | K108: 0 | L108: =SUM(L104:L107) -> 0 | M108: =SUM(M103:M107) -> 500 | N108: =SUM(N105:N107) -> 3250 | O108: =SUM(O104:O107) -> 250 | P108: 0 | Q108: 0 | R108: 0 | S108: 0 | T108: =SUM(H108:S108) -> 4000
F109: 54155 · Insurance
G110: Event Cancellation Insurance (Roach Howard Smith & Barton) | M110: 30000
G111: Business Insurance (Roach Howard Smith & Barton) | H111: 9000 | I111: 1800 | J111: 1800 | K111: 1800 | L111: 1800 | M111: 1800 | N111: 1800 | O111: 1800
G113: Total | H113: =SUM(H112) -> 0 | I113: =SUM(I112) -> 0 | J113: =SUM(J110:J112) -> 1800 | K113: 1800 | L113: 1800 | M113: 31800 | N113: 1800 | O113: 1800 | P113: 0 | Q113: 0 | R113: 0 | S113: 0 | T113: =SUM(H113:S113) -> 40800
F114: 54160 · Legal/Accounting
G115: Legal Services | O115: 1000
G116: Accounting Services (BKD) | M116: 600 | N116: 2200 | O116: 2200
G117: Accounting Services (Whitley Penn LLP) | J117: 8000 | L117: 3000 | O117: 2000
G118: Total | H118: =SUM(H115:H117) -> 0 | I118: =SUM(I115:I117) -> 0 | J118: 8000 | K118: 0 | L118: 3000 | M118: 600 | N118: 2200 | O118: 5200 | P118: 0 | Q118: 0 | R118: 0 | S118: 0 | T118: =SUM(H118:S118) -> 19000
F119: 54172 · Marketing
G121: 54020 · Advertising
G122: Digital advertising Platform Subscription (Feathr) | J122: 3000
G123: Print and Digital Ads (HOUSTON CHRONICLE) | N123: 10000
G124: Event Sponsorships | K124: 2000
G125: Telemarketing (Voicelogic) | N125: 8000
G126: 54173 · Consulting/PR
G127: Press Release Service (Business Wire) | N127: 1000
G128: Sweepstakes Rules/Legal (SCA Promotions) | K128: 2350
G129: 54176 · Shows and Exhibits
G130: Image Show | I130: 500
G131: Crypto Show Booth | L131: 1500
G132: Renewalble Show Booth | L132: 3500
F133: Total 54172 · Marketing | H133: =SUM(H120:H132) -> 0 | I133: 500 | J133: 3000 | K133: 4350 | L133: 5000 | M133: 0 | N133: 19000 | O133: 0 | P133: 0 | Q133: 0 | R133: 0 | S133: 0 | T133: =SUM(H133:S133) -> 31850
F134: 54175 · Meals & Entertainment
G135: NAPE Advisory Board Meeting | O135: 500
G136: Partner Dinner | O136: 2000
G137: Speaker Dinner | O137: 2000
G138: Business Development Meals | O138: 2500
G139: Total | H139: =SUM(H137) -> 0 | I139: 0 | J139: 0 | K139: 0 | L139: 0 | M139: 0 | N139: 0 | O139: =SUM(O135:O138) -> 7000 | P139: =SUM(P137) -> 0 | Q139: =SUM(Q137) -> 0 | R139: =SUM(R137) -> 0 | S139: =SUM(S137) -> 0 | T139: =SUM(H139:S139) -> 7000
F140: 54185 · Office Supplies
G141: Copy Machine Allocation | H141: 1800 | I141: 360 | J141: 360 | K141: 360 | L141: 360 | M141: 360 | N141: 360 | O141: 360
G142: Supplies (Staples) | H142: 750 | I142: 150 | J142: 150 | K142: 150 | L142: 150 | M142: 150 | N142: 150 | O142: 150
G145: Total | H145: =SUM(H144) -> 0 | I145: =SUM(I144) -> 0 | J145: =SUM(J141:J144) -> 510 | K145: 510 | L145: 510 | M145: 510 | N145: 510 | O145: 510 | P145: 0 | Q145: 0 | R145: 0 | S145: 0 | T145: =SUM(H145:S145) -> 3060
F146: 54195 · Online/Website
G147: Dropbox | J147: 1300
G148: Email Marketing System (Mailchimp) | H148: 3500 | I148: 700 | J148: 700 | K148: 700 | L148: 700 | M148: 700 | N148: 700 | O148: 700
G149: Website Host (Liguid Web) | H149: 1750 | I149: 350 | J149: 350 | K149: 350 | L149: 350 | M149: 350 | N149: 350 | O149: 350
G150: Website Updates (Mason Baronet) | H150: 3000 | L150: 350
G151: Total | H151: =SUM(H150) -> 3000 | I151: =SUM(I150) -> 0 | J151: =SUM(J147:J150) -> 2350 | K151: 1050 | L151: 1400 | M151: 1050 | N151: 1050 | O151: 1050 | P151: 0 | Q151: 0 | R151: 0 | S151: 0 | T151: =SUM(H151:S151) -> 10950
F152: 54220 · On-Site Utilities
G153: Internet Service Charges During NAPE (Smart City Network) | O153: 25000
G154: Electric Service Charges During NAPE (Smart City Network) | O154: 5000
G155: Total | H155: =SUM(H153:H154) -> 0 | I155: =SUM(I153:I154) -> 0 | J155: 0 | K155: 0 | L155: 0 | M155: 0 | N155: 0 | O155: 30000 | P155: 0 | Q155: 0 | R155: 0 | S155: 0 | T155: =SUM(H155:S155) -> 30000
F156: 54225 · Sponsor Branded Items
G157: Global Business Conference Cups Qty. 2500 (Boundless Network) | O157: 1000
G158: Global Business Conference Napkins Qty. 400 (Boundless Network) | O158: 120
G159: Bevrage Stations Cups Qty.11,500 (Boundless Network) | O159: 4000
G160: Bevrage Stations Napkins Qty. 9,200 (Boundless Network) | O160: 920
G161: Icebraker Cups Qty 3,450 (Boundless Network) | O161: 1380
G162: Icebraker Napkins Qty 3,450 (Boundless Network) | O162: 460
G163: Popcorn Cups Qty. 2,875 (Boundless Network) | O163: 1400
G164: Lanyards | O164: 7500
G165: Hotel Keycards Qty.700 (PLS) | O165: 6700
G166: Total | H166: =SUM(H158) -> 0 | I166: 0 | J166: 0 | K166: 0 | L166: 0 | M166: 0 | N166: 0 | O166: =SUM(O157:O165) -> 23480 | P166: =SUM(P158) -> 0 | Q166: =SUM(Q158) -> 0 | R166: =SUM(R158) -> 0 | S166: =SUM(S158) -> 0 | T166: =SUM(H166:S166) -> 23480
F167: 54230 · Postage/Freight
G168: Monthly Postage Allocation | H168: 125 | I168: 25 | J168: 25 | K168: 25 | L168: 25 | M168: 25 | N168: 25 | O168: 25
G169: NAPE Exhibitor Postcards (Digital 3 Printing) | N169: 1500
G170: NAPE Promo Brochure Postage | I170: 1000 | L170: 6000
G171: Sponsor Items Shipping (Boundless Network) | N171: 2000
G172: Show Guide, Maps, GBC Promgram Shiping (Digital 3 Printing) | O172: 800
G173: Registration Equipment and Supplies (MCI) | O173: 300
G174: NAPE Magazine Shipping to NAPE | N174: 500
G175: Sponsor Reception Invite | N175: 600
G176: January NAPE Magazine Postage | N176: 8500
G177: April NAPE Magazine Postage | H177: 8500
G178: July NAPE Magazine Postage | H178: 8500
G179: October NAPE Magazine Postage | K179: 8500 | N179: 8500
G180: Total | H180: =SUM(H168:H179) -> 17125 | I180: 1025 | J180: 25 | K180: 8525 | L180: 6025 | M180: 25 | N180: 21625 | O180: 1125 | P180: 0 | Q180: 0 | R180: 0 | S180: 0 | T180: =SUM(H180:S180) -> 55500
F181: 54235 · Phone & Connectivity
G182: Conference Line Service for NOC and NAB Meetings (UberConferance) | O182: 75
G183: Telephone For NAB Meeting (Hilton Americas) | O183: 100
G184: Total | H184: =SUM(H183) -> 0 | I184: =SUM(I183) -> 0 | J184: 0 | K184: 0 | L184: 0 | M184: 0 | N184: 0 | O184: =SUM(O182:O183) -> 175 | P184: 0 | Q184: 0 | R184: 0 | S184: 0 | T184: =SUM(H184:S184) -> 175
F185: 54240 · Printing
G186: 12,300 qty NAPE Promo Booklet | L186: 11500
G187: 700 qty NAPE Summit 2023 Sponsorship Packages Booklet (Digital 3 Printing) | H187: 2300
G188: 500 qty NAPE Save The Date Card (Digital 3 Printing) | M188: 400
G189: 11,000 qty NAPE Exhibitor Postcards (Digital 3 Printing) | H189: 2000
G190: 4,500 qty NAPE Magazine January 2023 Out of State (Digital 3 Printing) | N190: 12000
G191: 8,200 qty NAPE Magazine January 2023 In State (Digital 3 Printing) | N191: 22000
G192: 4,500 qty NAPE Magazine April 2022 Out of State (Digital 3 Printing) | H192: 12000
G193: 8,200 qty NAPE Magazine April 2022 In State (Digital 3 Printing) | H193: 22000
G194: 4,500 qty NAPE Magazine July 2022 Out of State (Digital 3 Printing) | H194: 12000
G195: 8,200 qty NAPE Magazine July 2022 In State (Digital 3 Printing) | H195: 22000
G196: 4,500 qty NAPE Magazine October 2022 Out of State (Digital 3 Printing) | K196: 12000
G197: 8,200 qty NAPE Magazine October 2022 In State (Digital 3 Printing) | K197: 22000
G198: Business Cards (Moo Inc) | H198: 200
G199: 5,500 qty NAPE 2023 Summit Exhibit Floor Plan (Digital 3 Printing) | N199: 4000
G200: Exhibitor Supplemental List for NAPE Summit 2023 (Digital 3 Printing) | O200: 200
G201: 250 qty 2023 NAPE Summit Luncheon Cards (Digital 3 Printing) | N201: 250
G202: 500 qty 2023 NAPE Event Stickers (Digital 3 Printing) | N202: 500
G203: 1000 qty 2023 NAPE Summit Prospect Preview Handout (Digital 3 Printing) | N203: 1800
G204: 7,500 qty 2022 NAPE Summit Show Guides (Digital 3 Printing) | N204: 35000
G205: 3,000 qty Sponsor Reception Invite (Digital 3 Printing) | M205: 2000
G206: Total | H206: =SUM(H187:H205) -> 72500 | I206: =SUM(I186:I205) -> 0 | J206: 0 | K206: 34000 | L206: 11500 | M206: 2400 | N206: 75550 | O206: 200 | P206: =SUM(P187:P205) -> 0 | Q206: =SUM(Q187:Q205) -> 0 | R206: =SUM(R187:R205) -> 0 | S206: =SUM(S187:S205) -> 0 | T206: =SUM(H206:S206) -> 196150
F207: 54255 · Rent
G208: Rent For Office Space (AAPL) | H208: 43625 | I208: 8725 | J208: 8725 | K208: 8725 | L208: 8725 | M208: 8725 | N208: 8725 | O208: 8725
G209: Total | H209: =SUM(H208) -> 43625 | I209: =SUM(I208) -> 8725 | J209: 8725 | K209: 8725 | L209: 8725 | M209: 8725 | N209: 8725 | O209: 8725 | P209: 0 | Q209: 0 | R209: 0 | S209: 0 | T209: =SUM(H209:S209) -> 104700
F210: 54257 · Registration Services
G211: Online Sponsorship Sales, Booth Sales, Expo Management (A2Z) | H211: 32000
G212: Registration Services (MCI) | O212: 48000
G213: Total | H213: =SUM(H211:H212) -> 32000 | I213: =SUM(I212) -> 0 | J213: 0 | K213: 0 | L213: 0 | M213: 0 | N213: 0 | O213: 48000 | P213: 0 | Q213: 0 | R213: 0 | S213: 0 | T213: =SUM(H213:S213) -> 80000
F214: 54258 · Salaries
... 36 more rows
